{"text_format":"1","workbook":"xlsx","n_sheets":1,"sheets":["شهادات صف ثان  بدون أنشطة "],"not_rendered":{"charts":0,"images":0,"macros":1,"external_links":4,"defined_names":8,"comments":0,"pivot_tables":0},"unopened":[],"bounds":{"document_bytes":16777216,"sheet_cells":100000,"rows_first":2000,"rows_last":500,"rows_between":2000,"halvings":0,"cell_chars":16384,"cell_head_chars":4096},"cells_cut":0,"cells_raw":0,"read":"whole","date_system":"1900"}

{"sheet":"شهادات صف ثان  بدون أنشطة ","index":0,"n_rows":337,"n_cols":20,"rows_kept":337,"cut":false,"hidden":false,"merged":[[0,0,0,3],[0,10,1,12],[1,0,1,3],[2,0,2,12],[3,1,3,4],[3,7,3,8],[12,0,12,12],[4,9,5,9],[4,10,5,10],[4,11,5,11],[4,12,5,12],[6,0,6,1],[7,0,7,1],[4,0,5,1],[4,2,5,2],[4,3,5,3],[4,4,5,4],[4,5,4,7],[4,8,5,8],[8,0,9,2],[8,9,9,12],[10,0,10,3],[10,10,11,12],[11,0,11,3],[13,1,13,4],[13,7,13,8],[14,0,15,1],[14,2,15,2],[14,3,15,3],[14,4,15,4],[14,5,14,7],[14,8,15,8],[22,0,22,12],[14,9,15,9],[14,10,15,10],[14,11,15,11],[14,12,15,12],[16,0,16,1],[17,0,17,1],[18,0,19,2],[18,9,19,12],[20,0,20,3],[20,10,21,12],[21,0,21,3],[23,1,23,4],[23,7,23,8],[24,0,25,1],[24,2,25,2],[24,3,25,3],[24,4,25,4],[24,5,24,7],[24,8,25,8],[32,0,32,12],[24,9,25,9],[24,10,25,10],[24,11,25,11],[24,12,25,12],[26,0,26,1],[27,0,27,1],[28,0,29,2],[28,9,29,12],[30,0,30,3],[30,10,31,12],[31,0,31,3],[33,1,33,4],[33,7,33,8],[34,0,35,1],[34,2,35,2],[34,3,35,3],[34,4,35,4],[34,5,34,7],[34,8,35,8],[38,0,39,2],[38,9,39,12],[34,9,35,9],[34,10,35,10],[34,11,35,11],[34,12,35,12],[36,0,36,1],[37,0,37,1]]}
["إدارة ",null,null,null,null,null,null,null,null,null,"الصف الثانى الإعدادى",null,null,null,null,null,null,null,"من","إلى"]
["   مدرسة",null,null,null,null,null,null,null,null,null,null,null,null,null,null,null,null,null,{"$f":"MIN($O:$O)","v":400},{"$f":"MAX($O:$O)","v":731}]
["شهادة بدرجات امتحان الفصل الدراسى الأول  للعام الدراسي  2022-2023م    ]"]
["  اسم الطالب:",{"$f":"VLOOKUP($J$4,'[4]نتيجة صف ثان  طباعة '!B9:Q340,2,0)","v":{"$error":"#N/A"}},null,null,null,null,null,"رقم الجلوس",null,732,null,"الفصل",{"$f":"VLOOKUP($J$4,'[4]نتيجة صف ثان  طباعة '!B9:R340,17,0)","v":{"$error":"#N/A"}}]
["المواد الدراسية",null,"لغة عربية","لغة إنجليزية","دراسات","رياضيات",null,null,"علوم","المجموع الكلى","تربية إسلامية","تربية فنية","حاسب آلى"]
[null,null,null,null,null,"جبر","هندسة","مجموع رياضيات",null,null,1,null,null,null,400]
["النهايات الكبرى",null,80,80,80,40,40,80,80,{"$f":"C7+D7+E7+F7+G7+I7","v":400},80,80,80,null,401]
["درجات الطالب",null,{"$f":"VLOOKUP($J$4,'[4]نتيجة صف ثان  طباعة '!B9:R340,3,0)","v":{"$error":"#N/A"}},{"$f":"VLOOKUP($J$4,'[4]نتيجة صف ثان  طباعة '!B9:Q340,4,0)","v":{"$error":"#N/A"}},{"$f":"VLOOKUP($J$4,'[4]نتيجة صف ثان  طباعة '!B9:Q340,5,0)","v":{"$error":"#N/A"}},{"$f":"VLOOKUP($J$4,'[4]نتيجة صف ثان  طباعة '!B9:Q340,6,0)","v":{"$error":"#N/A"}},{"$f":"VLOOKUP($J$4,'[4]نتيجة صف ثان  طباعة '!B9:Q340,7,0)","v":{"$error":"#N/A"}},{"$f":"VLOOKUP($J$4,'[4]نتيجة صف ثان  طباعة '!B9:Q340,8)","v":0},{"$f":"VLOOKUP($J$4,'[4]نتيجة صف ثان  طباعة '!B9:Q340,9,0)","v":{"$error":"#N/A"}},{"$f":"VLOOKUP($J$4,'[4]نتيجة صف ثان  طباعة '!B9:Q340,10,0)","v":{"$error":"#N/A"}},{"$f":"VLOOKUP($J$4,'[4]نتيجة صف ثان  طباعة '!B9:Q340,11,0)","v":{"$error":"#N/A"}},{"$f":"VLOOKUP($J$4,'[4]نتيجة صف ثان  طباعة '!B9:Q340,14,0)","v":{"$error":"#N/A"}},{"$f":"VLOOKUP($J$4,'[4]نتيجة صف ثان  طباعة '!B9:Q340,13,0)","v":{"$error":"#N/A"}},null,402]
[null,null,null,null,null,null,null,null,null,null,null,null,null,null,403]
[null,null,null,null,null,null,null,null,null,null,null,null,null,null,404]
["إدارة ",null,null,null,null,null,null,null,null,null,"الصف الثانى الإعدادى",null,null,null,405]
["   مدرسة",null,null,null,null,null,null,null,null,null,null,null,null,null,406]
["شهادة بدرجات امتحان الفصل الدراسى الأول  للعام الدراسي  2022-2023م    ]",null,null,null,null,null,null,null,null,null,null,null,null,null,407]
["  اسم الطالب:",{"$f":"VLOOKUP($J$14,'[4]نتيجة صف ثان  طباعة '!B9:Q340,2,0)","v":{"$error":"#N/A"}},null,null,null,null,null,"رقم الجلوس",null,{"$f":"IF(J4+1<=$T$2,J4+1,\"\")","v":""},null,"الفصل",{"$f":"VLOOKUP($J$14,'[4]نتيجة صف ثان  طباعة '!B9:R340,17,0)","v":{"$error":"#N/A"}},null,408]
["المواد الدراسية",null,"لغة عربية","لغة إنجليزية","دراسات","رياضيات",null,null,"علوم","المجموع الكلى","تربية إسلامية","تربية فنية","حاسب آلى",null,409]
[null,null,null,null,null,"جبر","هندسة","مجموع رياضيات",null,null,1,null,null,null,410]
["النهايات الكبرى",null,80,80,80,40,40,80,80,{"$f":"C17+D17+E17+F17+G17+I17","v":400},80,80,80,null,411]
["درجات الطالب",null,{"$f":"VLOOKUP($J$14,'[4]نتيجة صف ثان  طباعة '!B9:Q340,3,0)","v":{"$error":"#N/A"}},{"$f":"VLOOKUP($J$14,'[4]نتيجة صف ثان  طباعة '!B9:Q340,4,0)","v":{"$error":"#N/A"}},{"$f":"VLOOKUP($J$14,'[4]نتيجة صف ثان  طباعة '!B9:Q340,5,0)","v":{"$error":"#N/A"}},{"$f":"VLOOKUP($J$14,'[4]نتيجة صف ثان  طباعة '!B9:Q340,6,0)","v":{"$error":"#N/A"}},{"$f":"VLOOKUP($J$14,'[4]نتيجة صف ثان  طباعة '!B9:Q340,7,0)","v":{"$error":"#N/A"}},{"$f":"VLOOKUP($J$14,'[4]نتيجة صف ثان  طباعة '!B9:Q340,8,0)","v":{"$error":"#N/A"}},{"$f":"VLOOKUP($J$14,'[4]نتيجة صف ثان  طباعة '!B9:Q340,9,0)","v":{"$error":"#N/A"}},{"$f":"VLOOKUP($J$14,'[4]نتيجة صف ثان  طباعة '!B9:Q340,10,0)","v":{"$error":"#N/A"}},{"$f":"VLOOKUP($J$14,'[4]نتيجة صف ثان  طباعة '!B9:Q340,11,0)","v":{"$error":"#N/A"}},{"$f":"VLOOKUP($J$14,'[4]نتيجة صف ثان  طباعة '!B9:Q340,14,0)","v":{"$error":"#N/A"}},{"$f":"VLOOKUP($J$14,'[4]نتيجة صف ثان  طباعة '!B9:Q340,13,0)","v":{"$error":"#N/A"}},null,412]
[null,null,null,null,null,null,null,null,null,null,null,null,null,null,413]
[null,null,null,null,null,null,null,null,null,null,null,null,null,null,414]
["إدارة ",null,null,null,null,null,null,null,null,null,"الصف الثانى الإعدادى",null,null,null,415]
["   مدرسة",null,null,null,null,null,null,null,null,null,null,null,null,null,416]
["شهادة بدرجات امتحان الفصل الدراسى الأول  للعام الدراسي  2022-2023م    ]",null,null,null,null,null,null,null,null,null,null,null,null,null,417]
["  اسم الطالب:",{"$f":"VLOOKUP($J$24,'[4]نتيجة صف ثان  طباعة '!B9:Q340,2,0)","v":{"$error":"#N/A"}},null,null,null,null,null,"رقم الجلوس",null,{"$f":"IF(J4+2<=$T$2,J4+2,\"\")","v":""},null,"الفصل",{"$f":"VLOOKUP($J$24,'[4]نتيجة صف ثان  طباعة '!B9:R340,17,0)","v":{"$error":"#N/A"}},null,418]
["المواد الدراسية",null,"لغة عربية","لغة إنجليزية","دراسات","رياضيات",null,null,"علوم","المجموع الكلى","تربية إسلامية","تربية فنية","حاسب آلى",null,419]
[null,null,null,null,null,"جبر","هندسة","مجموع رياضيات",null,null,1,null,null,null,420]
["النهايات الكبرى",null,80,80,80,40,40,80,80,{"$f":"C27+D27+E27+F27+G27+I27","v":400},80,80,80,null,421]
["درجات الطالب",null,{"$f":"VLOOKUP($J$24,'[4]نتيجة صف ثان  طباعة '!B9:Q340,3,0)","v":{"$error":"#N/A"}},{"$f":"VLOOKUP($J$24,'[4]نتيجة صف ثان  طباعة '!B9:Q340,4,0)","v":{"$error":"#N/A"}},{"$f":"VLOOKUP($J$24,'[4]نتيجة صف ثان  طباعة '!B9:Q340,5,0)","v":{"$error":"#N/A"}},{"$f":"VLOOKUP($J$24,'[4]نتيجة صف ثان  طباعة '!B9:Q340,6,0)","v":{"$error":"#N/A"}},{"$f":"VLOOKUP($J$24,'[4]نتيجة صف ثان  طباعة '!B9:Q340,7,0)","v":{"$error":"#N/A"}},{"$f":"VLOOKUP($J$24,'[4]نتيجة صف ثان  طباعة '!B9:Q340,8,0)","v":{"$error":"#N/A"}},{"$f":"VLOOKUP($J$24,'[4]نتيجة صف ثان  طباعة '!B9:Q340,9,0)","v":{"$error":"#N/A"}},{"$f":"VLOOKUP($J$24,'[4]نتيجة صف ثان  طباعة '!B9:Q340,10,0)","v":{"$error":"#N/A"}},{"$f":"VLOOKUP($J$24,'[4]نتيجة صف ثان  طباعة '!B9:Q340,11,0)","v":{"$error":"#N/A"}},{"$f":"VLOOKUP($J$24,'[4]نتيجة صف ثان  طباعة '!B9:Q340,14,0)","v":{"$error":"#N/A"}},{"$f":"VLOOKUP($J$24,'[4]نتيجة صف ثان  طباعة '!B9:Q340,13,0)","v":{"$error":"#N/A"}},null,422]
[null,null,null,null,null,null,null,null,null,null,null,null,null,null,423]
[null,null,null,null,null,null,null,null,null,null,null,null,null,null,424]
["إدارة ",null,null,null,null,null,null,null,null,null,"الصف الثانى الإعدادى",null,null,null,425]
["   مدرسة",null,null,null,null,null,null,null,null,null,null,null,null,null,426]
["شهادة بدرجات امتحان الفصل الدراسى الأول  للعام الدراسي  2022-2023م    ]",null,null,null,null,null,null,null,null,null,null,null,null,null,427]
["  اسم الطالب:",{"$f":"VLOOKUP($J$34,'[4]نتيجة صف ثان  طباعة '!B9:Q340,2,0)","v":{"$error":"#N/A"}},null,null,null,null,null,"رقم الجلوس",null,{"$f":"IF(J4+3<=$T$2,J4+3,\"\")","v":""},null,"الفصل",{"$f":"VLOOKUP($J$34,'[4]نتيجة صف ثان  طباعة '!B9:R340,17,0)","v":{"$error":"#N/A"}},null,428]
["المواد الدراسية",null,"لغة عربية","لغة إنجليزية","دراسات","رياضيات",null,null,"علوم","المجموع الكلى","تربية إسلامية","تربية فنية","حاسب آلى",null,429]
[null,null,null,null,null,"جبر","هندسة","مجموع رياضيات",null,null,1,null,null,null,430]
["النهايات الكبرى",null,80,80,80,40,40,80,80,{"$f":"C37+D37+E37+F37+G37+I37","v":400},80,80,80,null,431]
["درجات الطالب",null,{"$f":"VLOOKUP($J$34,'[4]نتيجة صف ثان  طباعة '!B9:Q340,3,0)","v":{"$error":"#N/A"}},{"$f":"VLOOKUP($J$34,'[4]نتيجة صف ثان  طباعة '!B9:Q340,4,0)","v":{"$error":"#N/A"}},{"$f":"VLOOKUP($J$34,'[4]نتيجة صف ثان  طباعة '!B9:Q340,5,0)","v":{"$error":"#N/A"}},{"$f":"VLOOKUP($J$34,'[4]نتيجة صف ثان  طباعة '!B9:Q340,6,0)","v":{"$error":"#N/A"}},{"$f":"VLOOKUP($J$34,'[4]نتيجة صف ثان  طباعة '!B9:Q340,7,0)","v":{"$error":"#N/A"}},{"$f":"VLOOKUP($J$34,'[4]نتيجة صف ثان  طباعة '!B9:Q340,8,0)","v":{"$error":"#N/A"}},{"$f":"VLOOKUP($J$34,'[4]نتيجة صف ثان  طباعة '!B9:Q340,9,0)","v":{"$error":"#N/A"}},{"$f":"VLOOKUP($J$34,'[4]نتيجة صف ثان  طباعة '!B9:Q340,10,0)","v":{"$error":"#N/A"}},{"$f":"VLOOKUP($J$34,'[4]نتيجة صف ثان  طباعة '!B9:Q340,11,0)","v":{"$error":"#N/A"}},{"$f":"VLOOKUP($J$34,'[4]نتيجة صف ثان  طباعة '!B9:Q340,14,0)","v":{"$error":"#N/A"}},{"$f":"VLOOKUP($J$34,'[4]نتيجة صف ثان  طباعة '!B9:Q340,13,0)","v":{"$error":"#N/A"}},null,432]
[null,null,null,null,null,null,null,null,null,null,null,null,null,null,433]
[null,null,null,null,null,null,null,null,null,null,null,null,null,null,434]
[null,null,null,null,null,null,null,null,null,null,null,null,null,null,435]
[null,null,null,null,null,null,null,null,null,null,null,null,null,null,436]
[null,null,null,null,null,null,null,null,null,null,null,null,null,null,437]
[null,null,null,null,null,null,null,null,null,null,null,null,null,null,438]
[null,null,null,null,null,null,null,null,null,null,null,null,null,null,439]
[null,null,null,null,null,null,null,null,null,null,null,null,null,null,440]
[null,null,null,null,null,null,null,null,null,null,null,null,null,null,441]
[null,null,null,null,null,null,null,null,null,null,null,null,null,null,442]
[null,null,null,null,null,null,null,null,null,null,null,null,null,null,443]
[null,null,null,null,null,null,null,null,null,null,null,null,null,null,444]
[null,null,null,null,null,null,null,null,null,null,null,null,null,null,445]
[null,null,null,null,null,null,null,null,null,null,null,null,null,null,446]
[null,null,null,null,null,null,null,null,null,null,null,null,null,null,447]
[null,null,null,null,null,null,null,null,null,null,null,null,null,null,448]
[null,null,null,null,null,null,null,null,null,null,null,null,null,null,449]
[null,null,null,null,null,null,null,null,null,null,null,null,null,null,450]
[null,null,null,null,null,null,null,null,null,null,null,null,null,null,451]
[null,null,null,null,null,null,null,null,null,null,null,null,null,null,452]
[null,null,null,null,null,null,null,null,null,null,null,null,null,null,453]
[null,null,null,null,null,null,null,null,null,null,null,null,null,null,454]
[null,null,null,null,null,null,null,null,null,null,null,null,null,null,455]
[null,null,null,null,null,null,null,null,null,null,null,null,null,null,456]
[null,null,null,null,null,null,null,null,null,null,null,null,null,null,457]
[null,null,null,null,null,null,null,null,null,null,null,null,null,null,458]
[null,null,null,null,null,null,null,null,null,null,null,null,null,null,459]
[null,null,null,null,null,null,null,null,null,null,null,null,null,null,460]
[null,null,null,null,null,null,null,null,null,null,null,null,null,null,461]
[null,null,null,null,null,null,null,null,null,null,null,null,null,null,462]
[null,null,null,null,null,null,null,null,null,null,null,null,null,null,463]
[null,null,null,null,null,null,null,null,null,null,null,null,null,null,464]
[null,null,null,null,null,null,null,null,null,null,null,null,null,null,465]
[null,null,null,null,null,null,null,null,null,null,null,null,null,null,466]
[null,null,null,null,null,null,null,null,null,null,null,null,null,null,467]
[null,null,null,null,null,null,null,null,null,null,null,null,null,null,468]
[null,null,null,null,null,null,null,null,null,null,null,null,null,null,469]
[null,null,null,null,null,null,null,null,null,null,null,null,null,null,470]
[null,null,null,null,null,null,null,null,null,null,null,null,null,null,471]
[null,null,null,null,null,null,null,null,null,null,null,null,null,null,472]
[null,null,null,null,null,null,null,null,null,null,null,null,null,null,473]
[null,null,null,null,null,null,null,null,null,null,null,null,null,null,474]
[null,null,null,null,null,null,null,null,null,null,null,null,null,null,475]
[null,null,null,null,null,null,null,null,null,null,null,null,null,null,476]
[null,null,null,null,null,null,null,null,null,null,null,null,null,null,477]
[null,null,null,null,null,null,null,null,null,null,null,null,null,null,478]
[null,null,null,null,null,null,null,null,null,null,null,null,null,null,479]
[null,null,null,null,null,null,null,null,null,null,null,null,null,null,480]
[null,null,null,null,null,null,null,null,null,null,null,null,null,null,481]
[null,null,null,null,null,null,null,null,null,null,null,null,null,null,482]
[null,null,null,null,null,null,null,null,null,null,null,null,null,null,483]
[null,null,null,null,null,null,null,null,null,null,null,null,null,null,484]
[null,null,null,null,null,null,null,null,null,null,null,null,null,null,485]
[null,null,null,null,null,null,null,null,null,null,null,null,null,null,486]
[null,null,null,null,null,null,null,null,null,null,null,null,null,null,487]
[null,null,null,null,null,null,null,null,null,null,null,null,null,null,488]
[null,null,null,null,null,null,null,null,null,null,null,null,null,null,489]
[null,null,null,null,null,null,null,null,null,null,null,null,null,null,490]
[null,null,null,null,null,null,null,null,null,null,null,null,null,null,491]
[null,null,null,null,null,null,null,null,null,null,null,null,null,null,492]
[null,null,null,null,null,null,null,null,null,null,null,null,null,null,493]
[null,null,null,null,null,null,null,null,null,null,null,null,null,null,494]
[null,null,null,null,null,null,null,null,null,null,null,null,null,null,495]
[null,null,null,null,null,null,null,null,null,null,null,null,null,null,496]
[null,null,null,null,null,null,null,null,null,null,null,null,null,null,497]
[null,null,null,null,null,null,null,null,null,null,null,null,null,null,498]
[null,null,null,null,null,null,null,null,null,null,null,null,null,null,499]
[null,null,null,null,null,null,null,null,null,null,null,null,null,null,500]
[null,null,null,null,null,null,null,null,null,null,null,null,null,null,501]
[null,null,null,null,null,null,null,null,null,null,null,null,null,null,502]
[null,null,null,null,null,null,null,null,null,null,null,null,null,null,503]
[null,null,null,null,null,null,null,null,null,null,null,null,null,null,504]
[null,null,null,null,null,null,null,null,null,null,null,null,null,null,505]
[null,null,null,null,null,null,null,null,null,null,null,null,null,null,506]
[null,null,null,null,null,null,null,null,null,null,null,null,null,null,507]
[null,null,null,null,null,null,null,null,null,null,null,null,null,null,508]
[null,null,null,null,null,null,null,null,null,null,null,null,null,null,509]
[null,null,null,null,null,null,null,null,null,null,null,null,null,null,510]
[null,null,null,null,null,null,null,null,null,null,null,null,null,null,511]
[null,null,null,null,null,null,null,null,null,null,null,null,null,null,512]
[null,null,null,null,null,null,null,null,null,null,null,null,null,null,513]
[null,null,null,null,null,null,null,null,null,null,null,null,null,null,514]
[null,null,null,null,null,null,null,null,null,null,null,null,null,null,515]
[null,null,null,null,null,null,null,null,null,null,null,null,null,null,516]
[null,null,null,null,null,null,null,null,null,null,null,null,null,null,517]
[null,null,null,null,null,null,null,null,null,null,null,null,null,null,518]
[null,null,null,null,null,null,null,null,null,null,null,null,null,null,519]
[null,null,null,null,null,null,null,null,null,null,null,null,null,null,520]
[null,null,null,null,null,null,null,null,null,null,null,null,null,null,521]
[null,null,null,null,null,null,null,null,null,null,null,null,null,null,522]
[null,null,null,null,null,null,null,null,null,null,null,null,null,null,523]
[null,null,null,null,null,null,null,null,null,null,null,null,null,null,524]
[null,null,null,null,null,null,null,null,null,null,null,null,null,null,525]
[null,null,null,null,null,null,null,null,null,null,null,null,null,null,526]
[null,null,null,null,null,null,null,null,null,null,null,null,null,null,527]
[null,null,null,null,null,null,null,null,null,null,null,null,null,null,528]
[null,null,null,null,null,null,null,null,null,null,null,null,null,null,529]
[null,null,null,null,null,null,null,null,null,null,null,null,null,null,530]
[null,null,null,null,null,null,null,null,null,null,null,null,null,null,531]
[null,null,null,null,null,null,null,null,null,null,null,null,null,null,532]
[null,null,null,null,null,null,null,null,null,null,null,null,null,null,533]
[null,null,null,null,null,null,null,null,null,null,null,null,null,null,534]
[null,null,null,null,null,null,null,null,null,null,null,null,null,null,535]
[null,null,null,null,null,null,null,null,null,null,null,null,null,null,536]
[null,null,null,null,null,null,null,null,null,null,null,null,null,null,537]
[null,null,null,null,null,null,null,null,null,null,null,null,null,null,538]
[null,null,null,null,null,null,null,null,null,null,null,null,null,null,539]
[null,null,null,null,null,null,null,null,null,null,null,null,null,null,540]
[null,null,null,null,null,null,null,null,null,null,null,null,null,null,541]
[null,null,null,null,null,null,null,null,null,null,null,null,null,null,542]
[null,null,null,null,null,null,null,null,null,null,null,null,null,null,543]
[null,null,null,null,null,null,null,null,null,null,null,null,null,null,544]
[null,null,null,null,null,null,null,null,null,null,null,null,null,null,545]
[null,null,null,null,null,null,null,null,null,null,null,null,null,null,546]
[null,null,null,null,null,null,null,null,null,null,null,null,null,null,547]
[null,null,null,null,null,null,null,null,null,null,null,null,null,null,548]
[null,null,null,null,null,null,null,null,null,null,null,null,null,null,549]
[null,null,null,null,null,null,null,null,null,null,null,null,null,null,550]
[null,null,null,null,null,null,null,null,null,null,null,null,null,null,551]
[null,null,null,null,null,null,null,null,null,null,null,null,null,null,552]
[null,null,null,null,null,null,null,null,null,null,null,null,null,null,553]
[null,null,null,null,null,null,null,null,null,null,null,null,null,null,554]
[null,null,null,null,null,null,null,null,null,null,null,null,null,null,555]
[null,null,null,null,null,null,null,null,null,null,null,null,null,null,556]
[null,null,null,null,null,null,null,null,null,null,null,null,null,null,557]
[null,null,null,null,null,null,null,null,null,null,null,null,null,null,558]
[null,null,null,null,null,null,null,null,null,null,null,null,null,null,559]
[null,null,null,null,null,null,null,null,null,null,null,null,null,null,560]
[null,null,null,null,null,null,null,null,null,null,null,null,null,null,561]
[null,null,null,null,null,null,null,null,null,null,null,null,null,null,562]
[null,null,null,null,null,null,null,null,null,null,null,null,null,null,563]
[null,null,null,null,null,null,null,null,null,null,null,null,null,null,564]
[null,null,null,null,null,null,null,null,null,null,null,null,null,null,565]
[null,null,null,null,null,null,null,null,null,null,null,null,null,null,566]
[null,null,null,null,null,null,null,null,null,null,null,null,null,null,567]
[null,null,null,null,null,null,null,null,null,null,null,null,null,null,568]
[null,null,null,null,null,null,null,null,null,null,null,null,null,null,569]
[null,null,null,null,null,null,null,null,null,null,null,null,null,null,570]
[null,null,null,null,null,null,null,null,null,null,null,null,null,null,571]
[null,null,null,null,null,null,null,null,null,null,null,null,null,null,572]
[null,null,null,null,null,null,null,null,null,null,null,null,null,null,573]
[null,null,null,null,null,null,null,null,null,null,null,null,null,null,574]
[null,null,null,null,null,null,null,null,null,null,null,null,null,null,575]
[null,null,null,null,null,null,null,null,null,null,null,null,null,null,576]
[null,null,null,null,null,null,null,null,null,null,null,null,null,null,577]
[null,null,null,null,null,null,null,null,null,null,null,null,null,null,578]
[null,null,null,null,null,null,null,null,null,null,null,null,null,null,579]
[null,null,null,null,null,null,null,null,null,null,null,null,null,null,580]
[null,null,null,null,null,null,null,null,null,null,null,null,null,null,581]
[null,null,null,null,null,null,null,null,null,null,null,null,null,null,582]
[null,null,null,null,null,null,null,null,null,null,null,null,null,null,583]
[null,null,null,null,null,null,null,null,null,null,null,null,null,null,584]
[null,null,null,null,null,null,null,null,null,null,null,null,null,null,585]
[null,null,null,null,null,null,null,null,null,null,null,null,null,null,586]
[null,null,null,null,null,null,null,null,null,null,null,null,null,null,587]
[null,null,null,null,null,null,null,null,null,null,null,null,null,null,588]
[null,null,null,null,null,null,null,null,null,null,null,null,null,null,589]
[null,null,null,null,null,null,null,null,null,null,null,null,null,null,590]
[null,null,null,null,null,null,null,null,null,null,null,null,null,null,591]
[null,null,null,null,null,null,null,null,null,null,null,null,null,null,592]
[null,null,null,null,null,null,null,null,null,null,null,null,null,null,593]
[null,null,null,null,null,null,null,null,null,null,null,null,null,null,594]
[null,null,null,null,null,null,null,null,null,null,null,null,null,null,595]
[null,null,null,null,null,null,null,null,null,null,null,null,null,null,596]
[null,null,null,null,null,null,null,null,null,null,null,null,null,null,597]
[null,null,null,null,null,null,null,null,null,null,null,null,null,null,598]
[null,null,null,null,null,null,null,null,null,null,null,null,null,null,599]
[null,null,null,null,null,null,null,null,null,null,null,null,null,null,600]
[null,null,null,null,null,null,null,null,null,null,null,null,null,null,601]
[null,null,null,null,null,null,null,null,null,null,null,null,null,null,602]
[null,null,null,null,null,null,null,null,null,null,null,null,null,null,603]
[null,null,null,null,null,null,null,null,null,null,null,null,null,null,604]
[null,null,null,null,null,null,null,null,null,null,null,null,null,null,605]
[null,null,null,null,null,null,null,null,null,null,null,null,null,null,606]
[null,null,null,null,null,null,null,null,null,null,null,null,null,null,607]
[null,null,null,null,null,null,null,null,null,null,null,null,null,null,608]
[null,null,null,null,null,null,null,null,null,null,null,null,null,null,609]
[null,null,null,null,null,null,null,null,null,null,null,null,null,null,610]
[null,null,null,null,null,null,null,null,null,null,null,null,null,null,611]
[null,null,null,null,null,null,null,null,null,null,null,null,null,null,612]
[null,null,null,null,null,null,null,null,null,null,null,null,null,null,613]
[null,null,null,null,null,null,null,null,null,null,null,null,null,null,614]
[null,null,null,null,null,null,null,null,null,null,null,null,null,null,615]
[null,null,null,null,null,null,null,null,null,null,null,null,null,null,616]
[null,null,null,null,null,null,null,null,null,null,null,null,null,null,617]
[null,null,null,null,null,null,null,null,null,null,null,null,null,null,618]
[null,null,null,null,null,null,null,null,null,null,null,null,null,null,619]
[null,null,null,null,null,null,null,null,null,null,null,null,null,null,620]
[null,null,null,null,null,null,null,null,null,null,null,null,null,null,621]
[null,null,null,null,null,null,null,null,null,null,null,null,null,null,622]
[null,null,null,null,null,null,null,null,null,null,null,null,null,null,623]
[null,null,null,null,null,null,null,null,null,null,null,null,null,null,624]
[null,null,null,null,null,null,null,null,null,null,null,null,null,null,625]
[null,null,null,null,null,null,null,null,null,null,null,null,null,null,626]
[null,null,null,null,null,null,null,null,null,null,null,null,null,null,627]
[null,null,null,null,null,null,null,null,null,null,null,null,null,null,628]
[null,null,null,null,null,null,null,null,null,null,null,null,null,null,629]
[null,null,null,null,null,null,null,null,null,null,null,null,null,null,630]
[null,null,null,null,null,null,null,null,null,null,null,null,null,null,631]
[null,null,null,null,null,null,null,null,null,null,null,null,null,null,632]
[null,null,null,null,null,null,null,null,null,null,null,null,null,null,633]
[null,null,null,null,null,null,null,null,null,null,null,null,null,null,634]
[null,null,null,null,null,null,null,null,null,null,null,null,null,null,635]
[null,null,null,null,null,null,null,null,null,null,null,null,null,null,636]
[null,null,null,null,null,null,null,null,null,null,null,null,null,null,637]
[null,null,null,null,null,null,null,null,null,null,null,null,null,null,638]
[null,null,null,null,null,null,null,null,null,null,null,null,null,null,639]
[null,null,null,null,null,null,null,null,null,null,null,null,null,null,640]
[null,null,null,null,null,null,null,null,null,null,null,null,null,null,641]
[null,null,null,null,null,null,null,null,null,null,null,null,null,null,642]
[null,null,null,null,null,null,null,null,null,null,null,null,null,null,643]
[null,null,null,null,null,null,null,null,null,null,null,null,null,null,644]
[null,null,null,null,null,null,null,null,null,null,null,null,null,null,645]
[null,null,null,null,null,null,null,null,null,null,null,null,null,null,646]
[null,null,null,null,null,null,null,null,null,null,null,null,null,null,647]
[null,null,null,null,null,null,null,null,null,null,null,null,null,null,648]
[null,null,null,null,null,null,null,null,null,null,null,null,null,null,649]
[null,null,null,null,null,null,null,null,null,null,null,null,null,null,650]
[null,null,null,null,null,null,null,null,null,null,null,null,null,null,651]
[null,null,null,null,null,null,null,null,null,null,null,null,null,null,652]
[null,null,null,null,null,null,null,null,null,null,null,null,null,null,653]
[null,null,null,null,null,null,null,null,null,null,null,null,null,null,654]
[null,null,null,null,null,null,null,null,null,null,null,null,null,null,655]
[null,null,null,null,null,null,null,null,null,null,null,null,null,null,656]
[null,null,null,null,null,null,null,null,null,null,null,null,null,null,657]
[null,null,null,null,null,null,null,null,null,null,null,null,null,null,658]
[null,null,null,null,null,null,null,null,null,null,null,null,null,null,659]
[null,null,null,null,null,null,null,null,null,null,null,null,null,null,660]
[null,null,null,null,null,null,null,null,null,null,null,null,null,null,661]
[null,null,null,null,null,null,null,null,null,null,null,null,null,null,662]
[null,null,null,null,null,null,null,null,null,null,null,null,null,null,663]
[null,null,null,null,null,null,null,null,null,null,null,null,null,null,664]
[null,null,null,null,null,null,null,null,null,null,null,null,null,null,665]
[null,null,null,null,null,null,null,null,null,null,null,null,null,null,666]
[null,null,null,null,null,null,null,null,null,null,null,null,null,null,667]
[null,null,null,null,null,null,null,null,null,null,null,null,null,null,668]
[null,null,null,null,null,null,null,null,null,null,null,null,null,null,669]
[null,null,null,null,null,null,null,null,null,null,null,null,null,null,670]
[null,null,null,null,null,null,null,null,null,null,null,null,null,null,671]
[null,null,null,null,null,null,null,null,null,null,null,null,null,null,672]
[null,null,null,null,null,null,null,null,null,null,null,null,null,null,673]
[null,null,null,null,null,null,null,null,null,null,null,null,null,null,674]
[null,null,null,null,null,null,null,null,null,null,null,null,null,null,675]
[null,null,null,null,null,null,null,null,null,null,null,null,null,null,676]
[null,null,null,null,null,null,null,null,null,null,null,null,null,null,677]
[null,null,null,null,null,null,null,null,null,null,null,null,null,null,678]
[null,null,null,null,null,null,null,null,null,null,null,null,null,null,679]
[null,null,null,null,null,null,null,null,null,null,null,null,null,null,680]
[null,null,null,null,null,null,null,null,null,null,null,null,null,null,681]
[null,null,null,null,null,null,null,null,null,null,null,null,null,null,682]
[null,null,null,null,null,null,null,null,null,null,null,null,null,null,683]
[null,null,null,null,null,null,null,null,null,null,null,null,null,null,684]
[null,null,null,null,null,null,null,null,null,null,null,null,null,null,685]
[null,null,null,null,null,null,null,null,null,null,null,null,null,null,686]
[null,null,null,null,null,null,null,null,null,null,null,null,null,null,687]
[null,null,null,null,null,null,null,null,null,null,null,null,null,null,688]
[null,null,null,null,null,null,null,null,null,null,null,null,null,null,689]
[null,null,null,null,null,null,null,null,null,null,null,null,null,null,690]
[null,null,null,null,null,null,null,null,null,null,null,null,null,null,691]
[null,null,null,null,null,null,null,null,null,null,null,null,null,null,692]
[null,null,null,null,null,null,null,null,null,null,null,null,null,null,693]
[null,null,null,null,null,null,null,null,null,null,null,null,null,null,694]
[null,null,null,null,null,null,null,null,null,null,null,null,null,null,695]
[null,null,null,null,null,null,null,null,null,null,null,null,null,null,696]
[null,null,null,null,null,null,null,null,null,null,null,null,null,null,697]
[null,null,null,null,null,null,null,null,null,null,null,null,null,null,698]
[null,null,null,null,null,null,null,null,null,null,null,null,null,null,699]
[null,null,null,null,null,null,null,null,null,null,null,null,null,null,700]
[null,null,null,null,null,null,null,null,null,null,null,null,null,null,701]
[null,null,null,null,null,null,null,null,null,null,null,null,null,null,702]
[null,null,null,null,null,null,null,null,null,null,null,null,null,null,703]
[null,null,null,null,null,null,null,null,null,null,null,null,null,null,704]
[null,null,null,null,null,null,null,null,null,null,null,null,null,null,705]
[null,null,null,null,null,null,null,null,null,null,null,null,null,null,706]
[null,null,null,null,null,null,null,null,null,null,null,null,null,null,707]
[null,null,null,null,null,null,null,null,null,null,null,null,null,null,708]
[null,null,null,null,null,null,null,null,null,null,null,null,null,null,709]
[null,null,null,null,null,null,null,null,null,null,null,null,null,null,710]
[null,null,null,null,null,null,null,null,null,null,null,null,null,null,711]
[null,null,null,null,null,null,null,null,null,null,null,null,null,null,712]
[null,null,null,null,null,null,null,null,null,null,null,null,null,null,713]
[null,null,null,null,null,null,null,null,null,null,null,null,null,null,714]
[null,null,null,null,null,null,null,null,null,null,null,null,null,null,715]
[null,null,null,null,null,null,null,null,null,null,null,null,null,null,716]
[null,null,null,null,null,null,null,null,null,null,null,null,null,null,717]
[null,null,null,null,null,null,null,null,null,null,null,null,null,null,718]
[null,null,null,null,null,null,null,null,null,null,null,null,null,null,719]
[null,null,null,null,null,null,null,null,null,null,null,null,null,null,720]
[null,null,null,null,null,null,null,null,null,null,null,null,null,null,721]
[null,null,null,null,null,null,null,null,null,null,null,null,null,null,722]
[null,null,null,null,null,null,null,null,null,null,null,null,null,null,723]
[null,null,null,null,null,null,null,null,null,null,null,null,null,null,724]
[null,null,null,null,null,null,null,null,null,null,null,null,null,null,725]
[null,null,null,null,null,null,null,null,null,null,null,null,null,null,726]
[null,null,null,null,null,null,null,null,null,null,null,null,null,null,727]
[null,null,null,null,null,null,null,null,null,null,null,null,null,null,728]
[null,null,null,null,null,null,null,null,null,null,null,null,null,null,729]
[null,null,null,null,null,null,null,null,null,null,null,null,null,null,730]
[null,null,null,null,null,null,null,null,null,null,null,null,null,null,731]